fUST/lending_fUST_20250729
["ID","MTS","AMOUNT","RATE_DAILY","PERIOD"]
[375797039,1753749069512,-584.943184,0.00021643,2]
[375797041,1753749069522,-460.0,0.00021643,2]
[375797043,1753749069532,-1048.428167,0.00021917,2]
[375797045,1753749069543,-460.0,0.00021917,2]
[375797047,1753749069553,-460.0,0.00021917,2]
[375797049,1753749069563,-460.0,0.00022191,2]
[375797051,1753749069572,-584.943184,0.0002236,7]
[375797053,1753749069582,-460.0,0.00022465,2]
[375797055,1753749069592,-460.0,0.00022739,2]
[375797057,1753749069601,-584.943184,0.00022739,7]
[375797059,1753749069611,-584.943184,0.00023,7]
[375797060,1753749069621,-460.0,0.00023013,2]
[375797062,1753749069631,-460.0,0.00023287,2]
[375797064,1753749069641,-87996.320437,0.000248,2]
[375797066,1753749069651,-200.0,0.00024899,2]
[375797068,1753749069660,-151.0,0.000249,7]
[375797070,1753749069669,-151.0,0.000249,7]
[375797072,1753749069679,-151.0,0.000249,7]
[375797074,1753749069688,-151.0,0.000249,7]
[375797076,1753749069699,-151.0,0.000249,7]
[375797078,1753749069709,-151.0,0.000249,7]
[375797080,1753749069719,-151.0,0.000249,7]
[375797082,1753749069728,-151.0,0.000249,7]
[375797083,1753749069738,-242.156498,0.000249,7]
[375797086,1753749069748,-231.818589,0.000249,7]
[375797087,1753749069758,-151.0,0.000249,7]
[375797089,1753749069767,-151.0,0.000249,7]
[375797091,1753749069777,-151.0,0.000249,7]
[375797093,1753749069786,-151.0,0.000249,7]
[375797095,1753749069796,-163.747152,0.000249,7]
[375797097,1753749069806,-163.747152,0.000249,7]
[375797099,1753749069817,-202.307778,0.000249,7]
[375797101,1753749069828,-151.0,0.000249,7]
[375797103,1753749069838,-151.0,0.000249,7]
[375797105,1753749069848,-152.688096,0.000249,7]
[375797107,1753749069859,-151.0,0.000249,7]
[375797109,1753749069868,-151.0,0.000249,7]
[375797111,1753749069877,-151.0,0.000249,7]
[375797113,1753749069888,-151.0,0.000249,7]
[375797114,1753749069898,-151.0,0.000249,7]
[375797116,1753749069908,-151.0,0.000249,7]
[375797118,1753749069918,-151.0,0.000249,7]
[375797120,1753749069928,-151.0,0.000249,7]
[375797122,1753749069937,-151.0,0.000249,7]
[375797124,1753749069947,-151.0,0.000249,7]
[375797126,1753749069957,-151.0,0.000249,7]
[375797128,1753749069967,-151.0,0.000249,7]
[375797130,1753749069976,-151.0,0.000249,7]
[375797132,1753749069985,-151.0,0.000249,7]
[375797134,1753749069995,-151.0,0.000249,7]
[375797136,1753749070005,-151.0,0.000249,7]
[375797138,1753749070015,-151.0,0.000249,7]
[375797140,1753749070025,-151.0,0.000249,7]
[375797141,1753749070035,-296.431544,0.000249,7]
[375797143,1753749070045,-296.431544,0.000249,7]
[375797145,1753749070055,-435.800487,0.000249,7]
[375797147,1753749070065,-435.800487,0.000249,7]
[375797149,1753749070087,-255.834975,0.000249,7]
[375797151,1753749070097,-255.834975,0.000249,7]
[375797153,1753749070107,-285.165362,0.000249,7]
[375797155,1753749070117,-285.165362,0.000249,7]
[375797157,1753749070126,-38819.47505585,0.000249,2]
[375797160,1753749070140,-95693.87210015,0.000249,2]
[375797162,1753749070150,-232.047717,0.000249,7]
[375797164,1753749070160,-232.047717,0.000249,7]
[375797165,1753749070169,-232.047717,0.000249,7]
[375797167,1753749070179,-232.047717,0.000249,7]
[375797185,1753749070355,-151.0,0.000249,7]
[375797187,1753749070365,-273.472572,0.000249,7]
[375797189,1753749070376,-273.472578,0.000249,7]
[375797191,1753749070386,-151.0,0.000249,7]
[375797193,1753749070395,-676.424315,0.000249,7]
[375797195,1753749070405,-676.424315,0.000249,7]
[375797197,1753749070415,-571.78,0.00024931,2]
[375797199,1753749070424,-536.76,0.00024931,2]
[375797201,1753749070434,-573.23,0.00024931,2]
[375797203,1753749070443,-4491.51,0.00024931,2]
[375797205,1753749070454,-579.93,0.00024931,2]
[375797207,1753749070463,-603.52,0.00024931,2]
[375797209,1753749070476,-302.20845648,0.00024931,2]
[375797211,1753749070488,-380.36253887,0.00024931,2]
[375797231,1753749070681,-460.0,0.00019178,2]
[375797233,1753749070691,-95.59550936,0.00019178,2]
[375797236,1753749070720,-364.40449064,0.00019178,2]
[375797239,1753749070731,-460.0,0.00019178,2]
[375797240,1753749070741,-460.0,0.00019178,2]
[375797242,1753749070751,-151.0,0.00019452,2]
[375797244,1753749070761,-584.943184,0.00019452,2]
[375797246,1753749070771,-460.0,0.00019452,2]
[375797248,1753749070781,-259.53955936,0.00019452,2]
[375797251,1753749070793,-200.46044064,0.00019452,2]
[375797253,1753749070803,-460.0,0.00019452,2]
[375797254,1753749070815,-584.943184,0.00019726,2]
[375797256,1753749070825,-460.0,0.00019726,2]
[375797258,1753749070835,-460.0,0.00019726,2]
[375797260,1753749070844,-460.0,0.0002,2]
[375797262,1753749070854,-584.943184,0.00020273,2]
[375797264,1753749070865,-502.05,0.00020273,2]
[375797266,1753749070875,-584.943184,0.00020547,2]
[375797268,1753749070887,-584.943184,0.00021095,2]
[375797269,1753749070896,-584.943184,0.00021643,2]
[375797271,1753749070906,-498.00506182,0.00022191,2]
[375797273,1753749070916,-584.943184,0.0002236,7]
[375797275,1753749070926,-306.41842374,0.00022394,2]
[375797277,1753749070936,-584.943184,0.00022739,7]
[375797279,1753749070946,-584.943184,0.00023,7]
[375797281,1753749070960,-460.0,0.00023561,2]
[375797283,1753749070970,-584.943184,0.00023835,7]
[375797285,1753749070979,-460.0,0.00023835,2]
[375797287,1753749070988,-584.94317984,0.00023835,7]
[375797289,1753749070998,-460.0,0.00024109,2]
[375797291,1753749071007,-489.42,0.00024383,2]
[375797293,1753749071017,-933.68900465,0.00024931,2]
[375797295,1753749071027,-503.97,0.00024931,2]
[375797297,1753749071037,-1896.92,0.00024931,2]
[375797299,1753749071046,-1815.21,0.00024931,2]
[375797301,1753749071056,-1344.16,0.00024931,2]
[375797303,1753749071066,-612.46,0.00024931,2]
[375797305,1753749071076,-497.08,0.00024931,2]
[375797307,1753749071086,-761.04,0.00024931,2]
[375797309,1753749071096,-460.0,0.00024931,2]
[375797311,1753749071106,-552.9,0.00024931,2]
[375797313,1753749071116,-511.35,0.00024931,2]
[375797315,1753749071126,-1539.51,0.00024931,2]
[375797317,1753749071136,-460.0,0.00024931,2]
[375797319,1753749071146,-314.98,0.00024931,2]
[375797321,1753749071156,-546.86,0.00024931,2]
[375797322,1753749071165,-1287.37,0.00024931,2]
[375797323,1753749071175,-564.43,0.00024931,2]
[375797324,1753749071184,-996.48,0.00024931,2]
[375797325,1753749071194,-509.59,0.00024931,2]
[375797326,1753749071206,-463.39,0.00024931,2]
[375797327,1753749071216,-797.7,0.00024931,2]
[375797328,1753749071226,-492.3,0.00024931,2]
[375797329,1753749071236,-1211.72,0.00024931,2]
[375797330,1753749071246,-460.0,0.00024931,2]
[375797331,1753749071255,-460.0,0.00024931,2]
[375797332,1753749071265,-4726.56,0.00024931,2]
[375797333,1753749071275,-502.36,0.00024931,2]
[375797334,1753749071285,-199.71311331,0.00024931,2]
[375797335,1753749071301,-386.88688669,0.00024931,2]
[375797336,1753749071311,-574.57,0.00024931,2]
[375797337,1753749071320,-446.94063248,0.00024931,2]
[375799713,1753749196393,9838.371184,0.00018246,2]
[375799715,1753749243468,5000.0,0.000191,6]
[375799716,1753749261010,5000.0,0.00018501,2]
[375799717,1753749277125,5000.0,0.00018501,2]
[375799719,1753749293022,5000.0,0.00018501,2]
[375799720,1753749308803,5000.0,0.00018501,2]
[375799732,1753749324567,5000.0,0.00018501,2]
[375799733,1753749340351,87.22762702,0.00018501,2]
[375799734,1753749340375,4912.77237298,0.00018501,2]
[375799735,1753749355830,5000.0,0.00018501,2]
[375799737,1753749372007,5000.0,0.00018501,2]
[375799738,1753749388542,5000.0,0.00018501,2]
[375799739,1753749408899,3705.08534767,0.00018501,2]
[375799741,1753749494666,288.606553,0.00018197,2]
[375799742,1753749588671,16093.53572635,0.00018176,2]
[375799743,1753749588696,8806.46427365,0.00018176,2]
[375799744,1753749662772,10000.0,0.00018151,2]
[375799745,1753749805715,158.137189,0.00018045,2]
[375799746,1753749848524,-200.03596987,0.00018503,2]
[375799747,1753749855067,-0.74459665,0.00018503,2]
[375799757,1753749948276,-200.78056652,0.00018503,2]
[375799758,1753750026117,-211.14219132,0.00018597,2]
[375799759,1753750026140,-708.00748728,0.00018603,2]
[375799760,1753750026163,-483.68464303,0.00018603,2]
[375799761,1753750026186,-354.00374364,0.00018677,2]
[375799762,1753750026208,-202.27695851,0.00019078,2]
[375799763,1753750026230,-786.0,0.00019171,2]
[375799764,1753750026250,-300.0,0.00019172,2]
[375799765,1753750026273,-248.0,0.00019172,2]
[375799766,1753750026295,-300.0,0.00019172,2]
[375799767,1753750026318,-300.0,0.00019172,2]
[375799768,1753750026342,-1200.0,0.00019172,2]
[375799769,1753750026363,-500.0,0.00019173,2]
[375799770,1753750026384,-500.0,0.00019173,2]
[375799771,1753750026408,-350.56963845,0.00019173,2]
[375799772,1753750026428,-500.0,0.00019173,2]
[375799773,1753750026449,-500.0,0.00019173,2]
[375799774,1753750026469,-430.33269884,0.00019178,2]
[375799775,1753750036084,-29.66730116,0.00019178,2]
[375799776,1753750036110,-460.0,0.00019178,2]
[375799777,1753750036131,-460.0,0.00019178,2]
[375799778,1753750036152,-90.69669884,0.00019178,2]
[375800404,1753750238460,-221.52356335,0.000189,2]
[375800406,1753750238470,-201.58696216,0.00019078,2]
[375800408,1753750238480,-13596.95589044,0.00019078,2]
[375800410,1753750238490,-1422576.76162831,0.000191,2]
[375800412,1753750238499,-803.41,0.00019168,3]
[375800414,1753750238508,-491.15,0.00019168,3]
[375800416,1753750238519,-245.58,0.00019168,3]
[375800418,1753750238528,-736.74,0.00019168,3]
[375800420,1753750238538,-500.0,0.00019173,2]
[375800422,1753750238548,-300.0,0.00019177,2]
[375800424,1753750238558,-12404.30895417,0.00019178,2]
[375800426,1753750238568,-460.0,0.00019178,2]
[375800429,1753750238578,-460.0,0.00019178,2]
[375800431,1753750238587,-460.0,0.00019178,2]
[375800433,1753750238597,-460.0,0.00019178,2]
[375800435,1753750238607,-460.0,0.00019178,2]
[375800437,1753750238616,-460.0,0.00019178,2]
[375800439,1753750238626,-153.85353706,0.00019178,2]
[375800442,1753750238635,-429.22481553,0.00019178,2]
[375800445,1753750238645,-460.0,0.00019178,2]
[375800448,1753750238655,-460.0,0.00019178,2]
[375800451,1753750238664,-460.0,0.00019178,2]
[375800454,1753750238674,-44.5021554,0.00019178,2]
[375800457,1753750238688,-415.4978446,0.00019178,2]
[375800461,1753750238698,-460.0,0.00019178,2]
[375800464,1753750238708,-460.0,0.00019178,2]
[375800467,1753750238718,-460.0,0.00019178,2]
[375800470,1753750238727,-460.0,0.00019178,2]
[375800473,1753750238738,-460.0,0.00019178,2]
[375800476,1753750238750,-460.0,0.00019178,2]
[375800479,1753750238761,-460.0,0.00019178,2]
[375800482,1753750238773,-460.0,0.00019178,2]
[375800485,1753750238782,-460.0,0.00019178,2]
[375800488,1753750238793,-460.0,0.00019178,2]
[375800491,1753750238803,-460.0,0.00019178,2]
[375800494,1753750238813,-460.0,0.00019178,2]
[375800496,1753750238823,-460.0,0.00019178,2]
[375800498,1753750238833,-460.0,0.00019178,2]
[375800500,1753750238843,-460.0,0.00019178,2]
[375800502,1753750238854,-460.0,0.00019178,2]
[375800504,1753750238863,-460.0,0.00019178,2]
[375800506,1753750238873,-460.0,0.00019178,2]
[375800508,1753750238883,-460.0,0.00019178,2]
[375800510,1753750238893,-460.0,0.00019178,2]
[375800512,1753750238902,-460.0,0.00019178,2]
[375800514,1753750238912,-460.0,0.00019178,2]
[375800515,1753750238922,-460.0,0.00019178,2]
[375800516,1753750238931,-460.0,0.00019178,2]
[375800517,1753750238941,-460.0,0.00019178,2]
[375800518,1753750238950,-460.0,0.00019178,2]
[375800519,1753750238960,-460.0,0.00019178,2]
[375800520,1753750238969,-460.0,0.00019178,2]
[375800521,1753750238978,-460.0,0.00019178,2]
[375800522,1753750238987,-460.0,0.00019178,2]
[375800523,1753750238996,-465.04724949,0.00019178,2]
[375800524,1753750239006,-460.0,0.00019178,2]
[375800525,1753750239016,-460.0,0.00019178,2]
[375800526,1753750239026,-460.0,0.00019178,2]
[375800527,1753750239036,-276.48199601,0.00019178,2]
[375800528,1753750239046,-460.0,0.00019178,2]
[375800529,1753750239055,-460.0,0.00019178,2]
[375800530,1753750239065,-460.0,0.00019178,2]
[375800531,1753750239075,-460.0,0.00019178,2]
[375800532,1753750239085,-461.65522058,0.00019178,2]
[375800533,1753750239094,-460.0,0.00019178,2]
[375800534,1753750239104,-460.0,0.00019178,2]
[375800535,1753750239114,-460.0,0.00019178,2]
[375800536,1753750239125,-460.0,0.00019178,2]
[375800537,1753750239135,-460.0,0.00019178,2]
[375800538,1753750239144,-460.0,0.00019178,2]
[375800539,1753750239154,-460.0,0.00019178,2]
[375800540,1753750239164,-460.0,0.00019178,2]
[375800541,1753750239174,-250.65717602,0.00019178,2]
[375800542,1753750239186,-460.0,0.00019178,2]
[375800543,1753750239197,-460.0,0.00019178,2]
[375800545,1753750239206,-460.0,0.00019178,2]
[375800547,1753750239216,-460.0,0.00019178,2]
[375800549,1753750239227,-460.0,0.00019178,2]
[375800551,1753750239237,-460.0,0.00019178,2]
[375800553,1753750239247,-460.0,0.00019178,2]
[375800555,1753750239257,-460.0,0.00019178,2]
[375800557,1753750239269,-460.0,0.00019178,2]
[375800559,1753750239279,-460.0,0.00019178,2]
[375800560,1753750239288,-460.0,0.00019178,2]
[375800562,1753750239298,-460.0,0.00019178,2]
[375800564,1753750239307,-460.0,0.00019178,2]
[375800566,1753750239317,-460.0,0.00019178,2]
[375800568,1753750239327,-460.0,0.00019178,2]
[375800570,1753750239337,-460.0,0.00019178,2]
[375800572,1753750239347,-298.75012774,0.00019178,2]
[375800574,1753750239357,-460.0,0.00019178,2]
[375800576,1753750239366,-460.0,0.00019178,2]
[375800578,1753750239376,-460.0,0.00019178,2]
[375800580,1753750239386,-460.0,0.00019178,2]
[375800582,1753750239396,-460.0,0.00019178,2]
[375800584,1753750239406,-460.0,0.00019178,2]
[375800586,1753750239416,-460.0,0.00019178,2]
[375800588,1753750239426,-460.0,0.00019178,2]
[375800607,1753750239435,-460.0,0.00019178,2]
[375800609,1753750239622,-460.0,0.00019178,2]
[375800611,1753750239631,-460.0,0.00019178,2]
[375800612,1753750239641,-460.0,0.00019178,2]
[375800614,1753750239651,-502.06034188,0.00019178,2]
[375800616,1753750239661,-462.68177106,0.00019178,2]
[375800618,1753750239671,-460.0,0.00019178,2]
[375800620,1753750239681,-460.0,0.00019178,2]
[375800622,1753750239691,-460.0,0.00019178,2]
[375800624,1753750239701,-460.0,0.00019178,2]
[375800626,1753750239711,-460.0,0.00019178,2]
[375800628,1753750239721,-460.0,0.00019178,2]
[375800630,1753750239730,-468.06874903,0.00019178,2]
[375800632,1753750239741,-460.0,0.00019178,2]
[375800634,1753750239750,-460.0,0.00019178,2]
[375800636,1753750239760,-460.0,0.00019178,2]
[375800638,1753750239773,-460.0,0.00019178,2]
[375800640,1753750239783,-460.0,0.00019178,2]
[375800642,1753750239795,-460.0,0.00019178,2]
[375800644,1753750239805,-460.0,0.00019178,2]
[375800646,1753750239816,-460.0,0.00019178,2]
[375800648,1753750239826,-367.59117734,0.00019178,2]
[375800650,1753750239835,-460.0,0.00019178,2]
[375800652,1753750239844,-460.0,0.00019178,2]
[375800654,1753750239854,-460.0,0.00019178,2]
[375800656,1753750239864,-460.0,0.00019178,2]
[375800658,1753750239875,-460.0,0.00019178,2]
[375800660,1753750239885,-460.0,0.00019178,2]
[375800662,1753750239895,-460.0,0.00019178,2]
[375800664,1753750239904,-460.0,0.00019178,2]
[375800666,1753750239914,-460.0,0.00019178,2]
[375800668,1753750239923,-460.0,0.00019178,2]
[375800669,1753750239933,-461.80990544,0.00019178,2]
[375800671,1753750239942,-460.0,0.00019178,2]
[375800673,1753750239951,-460.0,0.00019178,2]
[375800675,1753750239961,-607.36139228,0.00019178,2]
[375800677,1753750239970,-460.0,0.00019178,2]
[375800679,1753750239980,-460.0,0.00019178,2]
[375800681,1753750239990,-460.0,0.00019178,2]
[375800683,1753750240000,-460.0,0.00019178,2]
[375800685,1753750240009,-460.0,0.00019178,2]
[375800687,1753750240021,-460.0,0.00019178,2]
[375800689,1753750240031,-460.0,0.00019178,2]
[375800691,1753750240040,-460.0,0.00019178,2]
[375800693,1753750240050,-460.0,0.00019178,2]
[375800695,1753750240060,-462.56260098,0.00019178,2]
[375800697,1753750240069,-460.0,0.00019178,2]
[375800699,1753750240079,-507.63080748,0.00019178,2]
[375800701,1753750240089,-460.0,0.00019178,2]
[375800702,1753750240098,-460.0,0.00019178,2]
[375800704,1753750240107,-460.0,0.00019178,2]
[375800706,1753750240117,-460.0,0.00019178,2]
[375800708,1753750240127,-460.0,0.00019178,2]
[375800710,1753750240136,-500.0,0.00019178,2]
[375800712,1753750240146,-460.0,0.00019178,2]
[375800713,1753750240156,-586.46586975,0.00019178,2]
[375800714,1753750240165,-1000.0,0.00019178,2]
[375800715,1753750240178,-460.0,0.00019178,2]
[375800716,1753750240188,-460.0,0.00019178,2]
[375800717,1753750240198,-460.0,0.00019178,2]
[375800718,1753750240208,-460.0,0.00019178,2]
[375800719,1753750240219,-460.0,0.00019178,2]
[375800720,1753750240229,-460.0,0.00019178,2]
[375800721,1753750240238,-460.0,0.00019178,2]
[375800722,1753750240247,-460.0,0.00019178,2]
[375800723,1753750240259,-261.47241748,0.00019178,2]
[375800724,1753750240270,-460.0,0.00019178,2]
[375800725,1753750240280,-460.0,0.00019178,2]
[375800726,1753750240290,-460.0,0.00019178,2]
[375800727,1753750240299,-460.0,0.00019178,2]
[375800728,1753750240309,-460.0,0.00019178,2]
[375800729,1753750240319,-460.0,0.00019178,2]
[375800730,1753750240328,-460.0,0.00019178,2]
[375800731,1753750240338,-460.0,0.00019178,2]
[375800732,1753750240347,-460.0,0.00019178,2]
[375800733,1753750240357,-460.0,0.00019178,2]
[375800734,1753750240367,-582.52598233,0.00019178,2]
[375800735,1753750240377,-500.0,0.00019178,2]
[375800736,1753750240388,-500.0,0.00019178,2]
[375800737,1753750240398,-500.0,0.00019178,2]
[375800738,1753750240408,-500.0,0.00019178,2]
[375800739,1753750240417,-460.0,0.00019178,2]
[375800740,1753750240427,-500.0,0.00019178,2]
[375800741,1753750240437,-500.0,0.00019178,2]
[375800742,1753750240447,-500.0,0.00019178,2]
[375800743,1753750240459,-500.0,0.00019178,2]
[375800744,1753750240468,-297.1678823,0.00019178,2]
[375800745,1753750240478,-460.0,0.00019178,2]
[375800746,1753750240488,-460.0,0.00019178,2]
[375800747,1753750240498,-460.0,0.00019178,2]
[375800748,1753750240508,-460.0,0.00019178,2]
[375800749,1753750240520,-460.0,0.00019178,2]
[375800750,1753750240529,-461.29578883,0.00019178,2]
[375800751,1753750240539,-460.0,0.00019178,2]
[375800752,1753750240548,-460.0,0.00019178,2]
[375800753,1753750240557,-460.0,0.00019178,2]
[375800754,1753750240567,-238.35004667,0.00019178,2]
[375800755,1753750240578,-460.0,0.00019178,2]
[375800756,1753750240588,-460.0,0.00019178,2]
[375800757,1753750240598,-460.0,0.00019178,2]
[375800758,1753750240608,-460.0,0.00019178,2]
[375800759,1753750240617,-460.0,0.00019178,2]
[375800760,1753750240627,-460.0,0.00019178,2]
[375800761,1753750240636,-460.0,0.00019178,2]
[375800762,1753750240646,-416.53792389,0.00019178,2]
[375800763,1753750240657,-460.0,0.00019178,2]
[375800764,1753750240667,-460.0,0.00019178,2]
[375800765,1753750240678,-460.0,0.00019178,2]
[375800766,1753750240688,-460.0,0.00019178,2]
[375800767,1753750240697,-460.0,0.00019178,2]
[375800768,1753750240707,-460.0,0.00019178,2]
[375800769,1753750240716,-458.53833289,0.00019178,2]
[375800770,1753750240726,-463.3122733,0.00019178,2]
[375800771,1753750240735,-460.0,0.00019178,2]
[375800772,1753750240745,-460.0,0.00019178,2]
[375800773,1753750240755,-460.0,0.00019178,2]
[375800774,1753750240767,-460.0,0.00019178,2]
[375800775,1753750240777,-460.0,0.00019178,2]
[375800776,1753750240787,-463.09046278,0.00019178,2]
[375800777,1753750240797,-460.0,0.00019178,2]
[375800778,1753750240807,-460.0,0.00019178,2]
[375800779,1753750240817,-460.0,0.00019178,2]
[375800780,1753750240827,-460.0,0.00019178,2]
[375800781,1753750240837,-460.0,0.00019178,2]
[375800782,1753750240847,-460.0,0.00019178,2]
[375800783,1753750240856,-460.0,0.00019178,2]
[375800784,1753750240866,-614.06,0.00019178,2]
[375800785,1753750240876,-460.0,0.00019178,2]
[375800786,1753750240885,-460.0,0.00019178,2]
[375800787,1753750240895,-321.15833953,0.00019178,2]
[375800788,1753750240905,-460.0,0.00019178,2]
[375800789,1753750240914,-425.10977352,0.00019178,2]
[375800790,1753750240924,-460.0,0.00019178,2]
[375800791,1753750240934,-460.0,0.00019178,2]
[375800792,1753750240943,-460.0,0.00019178,2]
[375800793,1753750240953,-460.0,0.00019178,2]
[375800794,1753750240962,-460.0,0.00019178,2]
[375800795,1753750240971,-460.0,0.00019178,2]
[375800796,1753750240982,-349.55762475,0.00019178,2]
[375800797,1753750240991,-460.0,0.00019178,2]
[375800798,1753750241001,-460.0,0.00019178,2]
[375800799,1753750241011,-460.0,0.00019178,2]
[375800800,1753750241023,-460.0,0.00019178,2]
[375800801,1753750241031,-460.0,0.00019178,2]
[375800802,1753750241042,-460.0,0.00019178,2]
[375800803,1753750241052,-460.0,0.00019178,2]
[375800804,1753750241061,-460.0,0.00019178,2]
[375800805,1753750241071,-460.0,0.00019178,2]
[375800806,1753750241081,-460.0,0.00019178,2]
[375800807,1753750241090,-460.0,0.00019178,2]
[375800808,1753750241100,-460.0,0.00019178,2]
[375800809,1753750241109,-460.0,0.00019178,2]
[375800810,1753750241119,-460.0,0.00019178,2]
[375800811,1753750241129,-460.0,0.00019178,2]
[375800812,1753750241140,-460.0,0.00019178,2]
[375800813,1753750241149,-460.0,0.00019178,2]
[375800814,1753750241159,-460.0,0.00019178,2]
[375800815,1753750241169,-460.72119802,0.00019178,2]
[375800816,1753750241179,-274.64888894,0.00019178,2]
[375800817,1753750241193,-460.0,0.00019178,2]
[375800818,1753750241203,-463.2498998,0.00019178,2]
[375800819,1753750241212,-460.0,0.00019178,2]
[375800820,1753750241223,-460.0,0.00019178,2]
[375800821,1753750241232,-460.0,0.00019178,2]
[375800822,1753750241242,-460.0,0.00019178,2]
[375800823,1753750241251,-460.0,0.00019178,2]
[375800824,1753750241263,-460.0,0.00019178,2]
[375800825,1753750241275,-460.0,0.00019178,2]
[375800826,1753750241284,-460.0,0.00019178,2]
[375800827,1753750241294,-460.0,0.00019178,2]
[375800828,1753750241303,-460.0,0.00019178,2]
[375800829,1753750241313,-460.0,0.00019178,2]
[375800830,1753750241323,-460.0,0.00019178,2]
[375800831,1753750241332,-460.0,0.00019178,2]
[375800832,1753750241342,-460.0,0.00019178,2]
[375800833,1753750241352,-460.0,0.00019178,2]
[375800834,1753750241362,-220.45923983,0.00019178,2]
[375800835,1753750241372,-460.0,0.00019178,2]
[375800836,1753750241382,-460.0,0.00019178,2]
[375800837,1753750241391,-554.13932368,0.00019178,2]
[375800838,1753750241400,-460.0,0.00019178,2]
[375800839,1753750241409,-461.22360476,0.00019178,2]
[375800840,1753750241419,-460.0,0.00019178,2]
[375800841,1753750241429,-460.0,0.00019178,2]
[375800842,1753750241438,-460.0,0.00019178,2]
[375800843,1753750241447,-460.0,0.00019178,2]
[375800844,1753750241457,-460.0,0.00019178,2]
[375800845,1753750241467,-460.0,0.00019178,2]
[375800846,1753750241476,-460.0,0.00019178,2]
[375800847,1753750241486,-460.0,0.00019178,2]
[375800848,1753750241495,-460.0,0.00019178,2]
[375800849,1753750241504,-467.43,0.00019178,2]
[375800850,1753750241514,-460.0,0.00019178,2]
[375800851,1753750241525,-460.0,0.00019178,2]
[375800852,1753750241535,-460.0,0.00019178,2]
[375800853,1753750241544,-460.0,0.00019178,2]
[375800854,1753750241553,-460.0,0.00019178,2]
[375800855,1753750241562,-460.0,0.00019178,2]
[375800856,1753750241572,-500.0,0.00019178,2]
[375800857,1753750241581,-500.0,0.00019178,2]
[375800858,1753750241591,-500.0,0.00019178,2]
[375800859,1753750241600,-460.0,0.00019178,2]
[375800860,1753750241610,-400.88779267,0.00019178,2]
[375800861,1753750241620,-460.0,0.00019178,2]
[375800862,1753750241630,-462.07365125,0.00019178,2]
[375800863,1753750241639,-460.0,0.00019178,2]
[375800864,1753750241648,-460.0,0.00019178,2]
[375800865,1753750241659,-460.0,0.00019178,2]
[375800866,1753750241668,-460.0,0.00019178,2]
[375800867,1753750241678,-460.0,0.00019178,2]
[375800868,1753750241687,-3806.67,0.00019178,2]
[375800869,1753750241697,-460.0,0.00019178,2]
[375800870,1753750241706,-460.0,0.00019178,2]
[375800871,1753750241716,-460.77409134,0.00019178,2]
[375800872,1753750241725,-460.0,0.00019178,2]
[375800873,1753750241734,-460.0,0.00019178,2]
[375800874,1753750241744,-764.71,0.00019178,2]